[Event "Early-Titled-Tuesday-Blitz-February-27-2024"]
[Site "Chess.com"]
[Date "2024.02.27"]
[Round "7"]
[White "Jospem"]
[Black "xamax2000"]
[Result "1-0"]
[WhiteElo "3065"]
[BlackElo "2830"]
[TimeControl "180+1"]
[EndTime "9:15:54 PST"]
[Termination "Jospem won by resignation"]

1. e4 {[%clk 0:03:00.9]} 1... e5 {[%clk 0:02:58.2]} 2. Nf3 {[%clk 0:03:01.5]}
2... Nc6 {[%clk 0:02:58.8]} 3. Nc3 {[%clk 0:03:02.2]} 3... Nf6 {[%clk
0:02:58.8]} 4. h3 {[%clk 0:03:03]} 4... Bb4 {[%clk 0:02:49.5]} 5. a3 {[%clk
0:03:02.6]} 5... Bxc3 {[%clk 0:02:49.1]} 6. dxc3 {[%clk 0:03:03.5]} 6... O-O
{[%clk 0:02:43.5]} 7. Bg5 {[%clk 0:02:59.8]} 7... d6 {[%clk 0:02:41.1]} 8. Bd3
{[%clk 0:02:58.4]} 8... Be6 {[%clk 0:02:39.1]} 9. Qd2 {[%clk 0:02:54.2]} 9...
Nb8 {[%clk 0:02:38.8]} 10. O-O-O {[%clk 0:02:41.1]} 10... Nbd7 {[%clk
0:02:39.2]} 11. Qe3 {[%clk 0:02:40.2]} 11... c6 {[%clk 0:02:30.4]} 12. Bh4
{[%clk 0:02:32.2]} 12... Qa5 {[%clk 0:02:09.6]} 13. Be2 {[%clk 0:02:24.5]} 13...
Qc7 {[%clk 0:02:00.1]} 14. Ng5 {[%clk 0:02:15]} 14... d5 {[%clk 0:01:54.5]} 15.
Bg3 {[%clk 0:02:05.8]} 15... Nxe4 {[%clk 0:01:42.5]} 16. Nxe4 {[%clk 0:01:45]}
16... dxe4 {[%clk 0:01:43.4]} 17. Qxe4 {[%clk 0:01:40.1]} 17... Rfe8 {[%clk
0:01:43.9]} 18. Qh4 {[%clk 0:01:24.5]} 18... Bf5 {[%clk 0:01:38.2]} 19. Rhe1
{[%clk 0:01:23.4]} 19... Nb6 {[%clk 0:01:31.1]} 20. Qg5 {[%clk 0:01:18.2]} 20...
Bg6 {[%clk 0:01:26.1]} 21. h4 {[%clk 0:01:18.2]} 21... h6 {[%clk 0:01:23.7]} 22.
Qg4 {[%clk 0:01:17]} 22... Nd5 {[%clk 0:01:20.2]} 23. h5 {[%clk 0:01:08.1]}
23... Nf6 {[%clk 0:01:17.4]} 24. Qh4 {[%clk 0:01:08.3]} 24... Bh7 {[%clk
0:01:13.9]} 25. Bc4 {[%clk 0:01:02.5]} 25... b5 {[%clk 0:01:11.7]} 26. Bb3
{[%clk 0:01:02.8]} 26... a5 {[%clk 0:00:55.5]} 27. f3 {[%clk 0:01:02.9]} 27...
a4 {[%clk 0:00:38.1]} 28. Ba2 {[%clk 0:01:03]} 28... Bf5 {[%clk 0:00:38]} 29.
Bh2 {[%clk 0:00:57.1]} 29... Bh7 {[%clk 0:00:33.9]} 30. g4 {[%clk 0:00:55.3]}
30... Nd5 {[%clk 0:00:30.2]} 31. g5 {[%clk 0:00:48]} 31... Qd8 {[%clk
0:00:28.9]} 32. Rg1 {[%clk 0:00:42.3]} 32... e4 {[%clk 0:00:20.6]} 33. Bxd5
{[%clk 0:00:34.8]} 33... cxd5 {[%clk 0:00:20.6]} 34. Qf4 {[%clk 0:00:35]} 34...
hxg5 {[%clk 0:00:17.8]} 35. Rxg5 {[%clk 0:00:35.1]} 35... f6 {[%clk 0:00:17.1]}
36. Rgxd5 {[%clk 0:00:34.3]} 36... Qb8 {[%clk 0:00:17.2]} 37. Qxb8 {[%clk
0:00:33.2]} 1-0

[Event "Early-Titled-Tuesday-Blitz-February-27-2024"]
[Site "Chess.com"]
[Date "2024.02.27"]
[Round "7"]
[White "LLariMarc"]
[Black "DrCeltic"]
[Result "1-0"]
[WhiteElo "2400"]
[BlackElo "2583"]
[TimeControl "180+1"]
[EndTime "9:16:06 PST"]
[Termination "LLariMarc won by checkmate"]

1. d4 {[%clk 0:03:00.9]} 1... d5 {[%clk 0:02:59.2]} 2. Nf3 {[%clk 0:03:01.2]}
2... Nf6 {[%clk 0:02:59.3]} 3. Bg5 {[%clk 0:03:01.8]} 3... Ne4 {[%clk
0:02:59.5]} 4. Nbd2 {[%clk 0:02:58.8]} 4... Nxg5 {[%clk 0:02:59.1]} 5. Nxg5
{[%clk 0:02:59.7]} 5... h6 {[%clk 0:02:59.1]} 6. Ngf3 {[%clk 0:03:00]} 6... Bf5
{[%clk 0:02:58.5]} 7. e3 {[%clk 0:02:59.4]} 7... e6 {[%clk 0:02:58.3]} 8. Rc1
{[%clk 0:02:58.5]} 8... Be7 {[%clk 0:02:51.8]} 9. c4 {[%clk 0:02:57.7]} 9...
dxc4 {[%clk 0:02:52.4]} 10. Bxc4 {[%clk 0:02:56.9]} 10... O-O {[%clk 0:02:53]}
11. O-O {[%clk 0:02:57.5]} 11... Nd7 {[%clk 0:02:51.1]} 12. Qe2 {[%clk
0:02:55.3]} 12... Nb6 {[%clk 0:02:41.5]} 13. Bd3 {[%clk 0:02:55.4]} 13... Bg4
{[%clk 0:02:41.7]} 14. h3 {[%clk 0:02:55.1]} 14... Bxf3 {[%clk 0:02:37.8]} 15.
Nxf3 {[%clk 0:02:54.1]} 15... c6 {[%clk 0:02:37.9]} 16. Rfd1 {[%clk 0:02:52.2]}
16... Nd5 {[%clk 0:02:35.7]} 17. a3 {[%clk 0:02:51.6]} 17... Rc8 {[%clk
0:02:33.6]} 18. Bc4 {[%clk 0:02:51.5]} 18... Nf6 {[%clk 0:02:33.5]} 19. Qd3
{[%clk 0:02:49.3]} 19... Qb6 {[%clk 0:02:32.3]} 20. Qb3 {[%clk 0:02:47.7]} 20...
Qc7 {[%clk 0:02:22.3]} 21. Rc2 {[%clk 0:02:45.2]} 21... Rfd8 {[%clk 0:02:17]}
22. Rdc1 {[%clk 0:02:45]} 22... Bd6 {[%clk 0:02:09.3]} 23. Bf1 {[%clk
0:02:39.2]} 23... Qe7 {[%clk 0:02:08.6]} 24. Qa4 {[%clk 0:02:38]} 24... Bb8
{[%clk 0:02:07.3]} 25. b4 {[%clk 0:02:36.4]} 25... a6 {[%clk 0:02:03.2]} 26. Qb3
{[%clk 0:02:35.9]} 26... Ne4 {[%clk 0:02:00.1]} 27. Nd2 {[%clk 0:02:34.9]} 27...
Qd6 {[%clk 0:01:58.1]} 28. f4 {[%clk 0:02:28.6]} 28... Nf6 {[%clk 0:01:54.3]}
29. Nc4 {[%clk 0:02:27.9]} 29... Qc7 {[%clk 0:01:48.3]} 30. g3 {[%clk
0:02:27.3]} 30... Ne4 {[%clk 0:01:46.8]} 31. Kh2 {[%clk 0:02:23.7]} 31... h5
{[%clk 0:01:45.9]} 32. Bg2 {[%clk 0:02:23.2]} 32... Nf6 {[%clk 0:01:42.8]} 33.
Ne5 {[%clk 0:02:22.4]} 33... Qe7 {[%clk 0:01:39.7]} 34. a4 {[%clk 0:02:20]}
34... h4 {[%clk 0:01:38]} 35. g4 {[%clk 0:02:19.4]} 35... Nd5 {[%clk 0:01:37.8]}
36. b5 {[%clk 0:02:01.1]} 36... axb5 {[%clk 0:01:37.1]} 37. axb5 {[%clk
0:02:01.2]} 37... Bxe5 {[%clk 0:01:33.7]} 38. fxe5 {[%clk 0:01:57.5]} 38... Rb8
{[%clk 0:01:12.1]} 39. Rf2 {[%clk 0:01:49.7]} 39... cxb5 {[%clk 0:01:04.7]} 40.
Rcf1 {[%clk 0:01:49.5]} 40... Rbc8 {[%clk 0:00:49.6]} 41. Rxf7 {[%clk
0:01:47.6]} 41... Qxf7 {[%clk 0:00:49.9]} 42. Rxf7 {[%clk 0:01:48.5]} 42... Kxf7
{[%clk 0:00:50.8]} 43. Qxb5 {[%clk 0:01:46.3]} 43... Nxe3 {[%clk 0:00:46.9]} 44.
Qxb7+ {[%clk 0:01:46.5]} 44... Kg8 {[%clk 0:00:47.4]} 45. Qe7 {[%clk 0:01:43.1]}
45... Nxg2 {[%clk 0:00:40.7]} 46. Qxe6+ {[%clk 0:01:41.6]} 46... Kh8 {[%clk
0:00:38.4]} 47. Kxg2 {[%clk 0:01:41.1]} 47... Rc2+ {[%clk 0:00:36.4]} 48. Kf3
{[%clk 0:01:41.3]} 48... Rc3+ {[%clk 0:00:32]} 49. Ke4 {[%clk 0:01:38.5]} 49...
Rxh3 {[%clk 0:00:27.2]} 50. Qf7 {[%clk 0:01:31.1]} 50... Rh1 {[%clk 0:00:22.9]}
51. Qh5+ {[%clk 0:01:18.5]} 51... Kg8 {[%clk 0:00:22.9]} 52. g5 {[%clk
0:01:19.2]} 52... Re1+ {[%clk 0:00:18.5]} 53. Kf5 {[%clk 0:01:18.4]} 53... Rxd4
{[%clk 0:00:13.7]} 54. Qe8+ {[%clk 0:01:18.1]} 54... Kh7 {[%clk 0:00:12.3]} 55.
g6+ {[%clk 0:01:19]} 55... Kh6 {[%clk 0:00:12.7]} 56. Qh8# {[%clk 0:01:19.9]}
1-0

[Event "Early-Titled-Tuesday-Blitz-February-27-2024"]
[Site "Chess.com"]
[Date "2024.02.27"]
[Round "7"]
[White "NowInChess"]
[Black "abeljusto"]
[Result "1-0"]
[WhiteElo "2256"]
[BlackElo "2095"]
[TimeControl "180+1"]
[EndTime "9:16:08 PST"]
[Termination "NowInChess won on time"]

1. e4 {[%clk 0:03:00.9]} 1... c5 {[%clk 0:02:57.3]} 2. d3 {[%clk 0:03:00.7]}
2... Nc6 {[%clk 0:02:55]} 3. g3 {[%clk 0:03:01.1]} 3... e6 {[%clk 0:02:50.6]} 4.
Bg2 {[%clk 0:03:01]} 4... d6 {[%clk 0:02:50.1]} 5. f4 {[%clk 0:02:59.8]} 5...
Be7 {[%clk 0:02:32.9]} 6. Nf3 {[%clk 0:02:59.7]} 6... a6 {[%clk 0:02:29.8]} 7.
a4 {[%clk 0:02:57.4]} 7... b6 {[%clk 0:02:28.9]} 8. O-O {[%clk 0:02:56.9]} 8...
Bb7 {[%clk 0:02:29.2]} 9. Nc3 {[%clk 0:02:53.2]} 9... Rc8 {[%clk 0:02:27.7]} 10.
Qe2 {[%clk 0:02:50.8]} 10... Qc7 {[%clk 0:02:24.1]} 11. Be3 {[%clk 0:02:36.7]}
11... Nf6 {[%clk 0:02:21.2]} 12. h3 {[%clk 0:02:35.7]} 12... O-O {[%clk
0:02:16.5]} 13. Bf2 {[%clk 0:02:27.3]} 13... d5 {[%clk 0:02:13.7]} 14. e5 {[%clk
0:02:26.7]} 14... Nd7 {[%clk 0:02:02.7]} 15. Rae1 {[%clk 0:02:17.1]} 15... Rfd8
{[%clk 0:01:54.4]} 16. f5 {[%clk 0:02:13.2]} 16... Nf8 {[%clk 0:01:07.7]} 17. g4
{[%clk 0:02:04.4]} 17... d4 {[%clk 0:00:54.6]} 18. Ne4 {[%clk 0:01:48.3]} 18...
Nxe5 {[%clk 0:00:53.8]} 19. Nxe5 {[%clk 0:01:39.4]} 19... Qxe5 {[%clk
0:00:53.4]} 20. Bg3 {[%clk 0:01:39.9]} 20... Qd5 {[%clk 0:00:38.3]} 21. Nf6+
{[%clk 0:01:25.6]} 21... Bxf6 {[%clk 0:00:36.8]} 22. Bxd5 {[%clk 0:01:26.5]}
22... Bxd5 {[%clk 0:00:35.8]} 23. h4 {[%clk 0:01:17.3]} 23... exf5 {[%clk
0:00:35]} 24. Rxf5 {[%clk 0:01:15.7]} 24... Be6 {[%clk 0:00:32.2]} 25. Rxf6
{[%clk 0:01:05.2]} 25... gxf6 {[%clk 0:00:31.8]} 26. Qf2 {[%clk 0:00:56.2]}
26... Nd7 {[%clk 0:00:29.6]} 27. g5 {[%clk 0:00:49.9]} 27... fxg5 {[%clk
0:00:27.8]} 28. hxg5 {[%clk 0:00:50.4]} 28... Nf8 {[%clk 0:00:21.9]} 29. Be5
{[%clk 0:00:48.3]} 29... Ng6 {[%clk 0:00:16.4]} 30. Bf6 {[%clk 0:00:48.4]} 30...
Rd5 {[%clk 0:00:15]} 31. Qh2 {[%clk 0:00:43.8]} 31... Kf8 {[%clk 0:00:07.5]} 32.
Qxh7 {[%clk 0:00:38.6]} 32... Ke8 {[%clk 0:00:07.9]} 33. Rxe6+ {[%clk
0:00:37.4]} 33... fxe6 {[%clk 0:00:06.9]} 34. Qxg6+ {[%clk 0:00:37.3]} 34... Kd7
{[%clk 0:00:06.5]} 35. Qf7+ {[%clk 0:00:35.1]} 35... Kc6 {[%clk 0:00:06.1]} 36.
Qxe6+ {[%clk 0:00:34.9]} 1-0

[Event "Early-Titled-Tuesday-Blitz-February-27-2024"]
[Site "Chess.com"]
[Date "2024.02.27"]
[Round "7"]
[White "DonCiao"]
[Black "IsaqueGoncalvesSanto"]
[Result "1-0"]
[WhiteElo "2095"]
[BlackElo "1757"]
[TimeControl "180+1"]
[EndTime "9:16:09 PST"]
[Termination "DonCiao won by checkmate"]

1. c4 {[%clk 0:02:56.8]} 1... e6 {[%clk 0:02:57.6]} 2. g3 {[%clk 0:02:55.5]}
2... d5 {[%clk 0:02:57.2]} 3. Bg2 {[%clk 0:02:55.2]} 3... c6 {[%clk 0:02:57.2]}
4. Nf3 {[%clk 0:02:54.8]} 4... Nf6 {[%clk 0:02:56.4]} 5. O-O {[%clk 0:02:54.5]}
5... dxc4 {[%clk 0:02:56]} 6. a4 {[%clk 0:02:52.1]} 6... b5 {[%clk 0:02:48.2]}
7. axb5 {[%clk 0:02:51.1]} 7... cxb5 {[%clk 0:02:48.2]} 8. Ne5 {[%clk
0:02:51.2]} 8... Nd5 {[%clk 0:02:47.4]} 9. b3 {[%clk 0:02:49.9]} 9... cxb3
{[%clk 0:02:41]} 10. Qxb3 {[%clk 0:02:49.8]} 10... a6 {[%clk 0:02:40.3]} 11. Nc3
{[%clk 0:02:48.3]} 11... Bb7 {[%clk 0:02:36.9]} 12. Nxb5 {[%clk 0:02:32]} 12...
Qb6 {[%clk 0:02:30.2]} 13. Qf3 {[%clk 0:02:20.7]} 13... f6 {[%clk 0:01:19.3]}
14. Qh5+ {[%clk 0:02:18.4]} 14... g6 {[%clk 0:01:18.4]} 15. Nxg6 {[%clk
0:02:18.3]} 15... hxg6 {[%clk 0:01:18.4]} 16. Qxg6+ {[%clk 0:02:08.8]} 16... Kd7
{[%clk 0:01:01.2]} 17. e4 {[%clk 0:01:33.2]} 17... axb5 {[%clk 0:00:35.8]} 18.
Rxa8 {[%clk 0:01:28.6]} 18... Bxa8 {[%clk 0:00:34.3]} 19. exd5 {[%clk
0:01:29.3]} 19... Bxd5 {[%clk 0:00:33.5]} 20. Qxf6 {[%clk 0:01:19]} 20... Rh5
{[%clk 0:00:19]} 21. Qxf8 {[%clk 0:01:10.6]} 21... Bxg2 {[%clk 0:00:18.2]} 22.
Kxg2 {[%clk 0:01:09.8]} 22... Qc6+ {[%clk 0:00:17.9]} 23. Kg1 {[%clk 0:01:06.3]}
23... Na6 {[%clk 0:00:17.6]} 24. Qf7+ {[%clk 0:01:06.2]} 24... Kd6 {[%clk
0:00:16.1]} 25. Qxh5 {[%clk 0:01:06.4]} 25... Nc5 {[%clk 0:00:15.4]} 26. d4
{[%clk 0:01:05.3]} 26... Ne4 {[%clk 0:00:11.7]} 27. Bf4+ {[%clk 0:01:00.4]}
27... Kd7 {[%clk 0:00:08.6]} 28. Qf7+ {[%clk 0:00:57.8]} 28... Kc8 {[%clk
0:00:08.4]} 29. Rc1 {[%clk 0:00:55.8]} 29... Nc3 {[%clk 0:00:04.8]} 30. Qf8+
{[%clk 0:00:49.9]} 30... Kb7 {[%clk 0:00:04.3]} 31. Qb8+ {[%clk 0:00:49.2]}
31... Ka6 {[%clk 0:00:02.2]} 32. Ra1+ {[%clk 0:00:43.8]} 32... Na4 {[%clk
0:00:02.3]} 33. Bc7 {[%clk 0:00:34.2]} 33... b4 {[%clk 0:00:01.8]} 34. Rxa4+
{[%clk 0:00:31]} 34... Qxa4 {[%clk 0:00:01.5]} 35. Qb6# {[%clk 0:00:31.1]} 1-0

[Event "Early-Titled-Tuesday-Blitz-February-27-2024"]
[Site "Chess.com"]
[Date "2024.02.27"]
[Round "7"]
[White "Aslanov_Umid"]
[Black "AryanTari"]
[Result "0-1"]
[WhiteElo "2673"]
[BlackElo "2930"]
[TimeControl "180+1"]
[EndTime "9:16:11 PST"]
[Termination "AryanTari won by resignation"]

1. e4 {[%clk 0:03:00.9]} 1... e5 {[%clk 0:02:58.4]} 2. Nf3 {[%clk 0:03:00.9]}
2... Nc6 {[%clk 0:02:59]} 3. Bc4 {[%clk 0:03:01.5]} 3... Nf6 {[%clk 0:02:43.4]}
4. d3 {[%clk 0:03:01.4]} 4... Bc5 {[%clk 0:02:41.3]} 5. c3 {[%clk 0:03:00.3]}
5... d6 {[%clk 0:02:41.7]} 6. O-O {[%clk 0:02:59.3]} 6... a5 {[%clk 0:02:42.3]}
7. Nbd2 {[%clk 0:02:56.9]} 7... O-O {[%clk 0:02:40.5]} 8. h3 {[%clk 0:02:54.7]}
8... h6 {[%clk 0:02:37.6]} 9. Re1 {[%clk 0:02:54.3]} 9... Be6 {[%clk 0:02:34.6]}
10. Bb5 {[%clk 0:02:54]} 10... Bb6 {[%clk 0:02:34.4]} 11. Nf1 {[%clk 0:02:52]}
11... Ne7 {[%clk 0:02:34.3]} 12. d4 {[%clk 0:02:44.7]} 12... exd4 {[%clk
0:02:34.1]} 13. cxd4 {[%clk 0:02:45.6]} 13... d5 {[%clk 0:02:34.5]} 14. e5
{[%clk 0:02:33.9]} 14... Ne4 {[%clk 0:02:34.4]} 15. Bd3 {[%clk 0:02:12.7]} 15...
Nf5 {[%clk 0:02:27]} 16. Be3 {[%clk 0:01:25.3]} 16... f6 {[%clk 0:02:13.6]} 17.
Qc2 {[%clk 0:01:19.7]} 17... fxe5 {[%clk 0:02:04]} 18. Bxe4 {[%clk 0:01:19.8]}
18... dxe4 {[%clk 0:02:01.5]} 19. Qxe4 {[%clk 0:01:20.7]} 19... Bd5 {[%clk
0:01:59.9]} 20. Qxe5 {[%clk 0:01:18.2]} 20... Bxf3 {[%clk 0:01:59.8]} 21. gxf3
{[%clk 0:01:18.8]} 21... Bxd4 {[%clk 0:01:50.2]} 22. Qe6+ {[%clk 0:01:12.3]}
22... Kh8 {[%clk 0:01:50.2]} 23. Rad1 {[%clk 0:01:12.2]} 23... Qh4 {[%clk
0:01:46.3]} 24. Qe4 {[%clk 0:00:40.6]} 24... Bxe3 {[%clk 0:01:45.7]} 25. Qxh4
{[%clk 0:00:34.7]} 25... Nxh4 {[%clk 0:01:39.3]} 26. Rxe3 {[%clk 0:00:35.4]}
26... Nxf3+ {[%clk 0:01:32.8]} 27. Kg2 {[%clk 0:00:35.6]} 27... Nh4+ {[%clk
0:01:33]} 28. Kg1 {[%clk 0:00:32.8]} 28... Ra6 {[%clk 0:01:32.9]} 29. Ng3 {[%clk
0:00:31.7]} 29... Rc6 {[%clk 0:01:31.6]} 30. Rc3 {[%clk 0:00:26.3]} 30... Rxc3
{[%clk 0:01:25]} 31. bxc3 {[%clk 0:00:27.2]} 31... Rf3 {[%clk 0:01:24.6]} 32.
Rc1 {[%clk 0:00:23.3]} 32... Rd3 {[%clk 0:01:24.6]} 33. Rb1 {[%clk 0:00:19]}
33... b6 {[%clk 0:01:23.3]} 34. c4 {[%clk 0:00:18.5]} 34... Rc3 {[%clk
0:01:21.7]} 35. Ne2 {[%clk 0:00:14.4]} 35... Rxc4 {[%clk 0:01:21.6]} 36. a3
{[%clk 0:00:09.6]} 36... a4 {[%clk 0:01:19.6]} 37. Rd1 {[%clk 0:00:08.7]} 37...
b5 {[%clk 0:01:18.7]} 38. Rd8+ {[%clk 0:00:08]} 38... Kh7 {[%clk 0:01:17.6]} 39.
f4 {[%clk 0:00:08.9]} 39... Ng6 {[%clk 0:01:13.7]} 40. f5 {[%clk 0:00:07.5]}
40... Nh4 {[%clk 0:01:13.6]} 41. f6 {[%clk 0:00:08.2]} 41... gxf6 {[%clk
0:01:13.1]} 42. Kf2 {[%clk 0:00:09]} 42... Nf5 {[%clk 0:01:10.7]} 43. Kf3 {[%clk
0:00:08]} 43... Nh4+ {[%clk 0:01:05.4]} 44. Kg3 {[%clk 0:00:07]} 44... Ng6
{[%clk 0:01:05.8]} 45. h4 {[%clk 0:00:05.5]} 45... h5 {[%clk 0:01:04.7]} 46.
Rd7+ {[%clk 0:00:04.8]} 46... Kh6 {[%clk 0:01:04.7]} 47. Kf3 {[%clk 0:00:04.7]}
47... Ne5+ {[%clk 0:01:04.4]} 48. Ke3 {[%clk 0:00:04.3]} 48... Nxd7 {[%clk
0:01:05.3]} 49. Nd4 {[%clk 0:00:04.4]} 49... Rxd4 {[%clk 0:01:05.4]} 50. Kxd4
{[%clk 0:00:04.6]} 50... f5 {[%clk 0:01:06.1]} 0-1

[Event "Early-Titled-Tuesday-Blitz-February-27-2024"]
[Site "Chess.com"]
[Date "2024.02.27"]
[Round "7"]
[White "Chessdreamer2020"]
[Black "Zampronha1971"]
[Result "1-0"]
[WhiteElo "2528"]
[BlackElo "2349"]
[TimeControl "180+1"]
[EndTime "9:16:11 PST"]
[Termination "Chessdreamer2020 won on time"]

1. e4 {[%clk 0:03:00.5]} 1... c5 {[%clk 0:02:59.3]} 2. Nf3 {[%clk 0:03:00.3]}
2... e6 {[%clk 0:02:59.4]} 3. b3 {[%clk 0:03:00.1]} 3... d5 {[%clk 0:02:58.5]}
4. Bb5+ {[%clk 0:02:59.5]} 4... Nc6 {[%clk 0:02:57.6]} 5. Bxc6+ {[%clk
0:02:58.7]} 5... bxc6 {[%clk 0:02:57.2]} 6. e5 {[%clk 0:02:59.6]} 6... Ne7
{[%clk 0:02:53.5]} 7. d3 {[%clk 0:02:59.9]} 7... a5 {[%clk 0:02:49.2]} 8. a4
{[%clk 0:02:55.3]} 8... Ba6 {[%clk 0:02:48.2]} 9. c4 {[%clk 0:02:55]} 9... Rb8
{[%clk 0:02:46.1]} 10. Nbd2 {[%clk 0:02:46.5]} 10... Nf5 {[%clk 0:02:08.8]} 11.
O-O {[%clk 0:02:37.8]} 11... Be7 {[%clk 0:02:08.5]} 12. Bb2 {[%clk 0:02:32.5]}
12... O-O {[%clk 0:02:07.4]} 13. Re1 {[%clk 0:02:32.6]} 13... Nh4 {[%clk
0:02:00.5]} 14. Nxh4 {[%clk 0:02:26.3]} 14... Bxh4 {[%clk 0:02:01.4]} 15. g3
{[%clk 0:02:23.4]} 15... Be7 {[%clk 0:02:00.8]} 16. Bc3 {[%clk 0:02:22.7]} 16...
Qc7 {[%clk 0:01:53.2]} 17. Qg4 {[%clk 0:02:13.8]} 17... Rfd8 {[%clk 0:01:37.6]}
18. Rab1 {[%clk 0:01:49.8]} 18... Bf8 {[%clk 0:01:28.4]} 19. h4 {[%clk
0:01:38.6]} 19... g6 {[%clk 0:01:26.6]} 20. Nf3 {[%clk 0:01:32]} 20... Bg7
{[%clk 0:01:25.9]} 21. Qf4 {[%clk 0:01:27]} 21... Rb7 {[%clk 0:01:15.8]} 22. h5
{[%clk 0:01:25.3]} 22... Rdb8 {[%clk 0:01:15.2]} 23. Nd2 {[%clk 0:01:22.5]}
23... Qd8 {[%clk 0:00:35.7]} 24. Kg2 {[%clk 0:01:12.1]} 24... Rd7 {[%clk
0:00:35.4]} 25. Rh1 {[%clk 0:01:05.7]} 25... dxc4 {[%clk 0:00:35.5]} 26. dxc4
{[%clk 0:01:05.1]} 26... Rd3 {[%clk 0:00:35.8]} 27. hxg6 {[%clk 0:01:03.9]}
27... hxg6 {[%clk 0:00:28.6]} 28. Ne4 {[%clk 0:01:03.8]} 28... Rxc3 {[%clk
0:00:13.2]} 29. Nxc3 {[%clk 0:01:03.3]} 29... Qd3 {[%clk 0:00:14.1]} 30. Ne4
{[%clk 0:00:36.9]} 30... Rxb3 {[%clk 0:00:11.3]} 31. Nxc5 {[%clk 0:00:27.2]} 1-0

[Event "Early-Titled-Tuesday-Blitz-February-27-2024"]
[Site "Chess.com"]
[Date "2024.02.27"]
[Round "7"]
[White "TigrVShlyape"]
[Black "Fonsofan"]
[Result "1-0"]
[WhiteElo "2874"]
[BlackElo "2736"]
[TimeControl "180+1"]
[EndTime "9:16:12 PST"]
[Termination "TigrVShlyape won on time"]

1. d4 {[%clk 0:03:00.9]} 1... f5 {[%clk 0:02:52.9]} 2. Nc3 {[%clk 0:02:54.6]}
2... Nf6 {[%clk 0:02:53.5]} 3. Bg5 {[%clk 0:02:53.7]} 3... c6 {[%clk 0:02:52.7]}
4. e3 {[%clk 0:02:45.3]} 4... d5 {[%clk 0:02:51.9]} 5. Bd3 {[%clk 0:02:42.3]}
5... e6 {[%clk 0:02:51.1]} 6. Nf3 {[%clk 0:02:35.5]} 6... Bd6 {[%clk 0:02:51.6]}
7. O-O {[%clk 0:02:33]} 7... Nbd7 {[%clk 0:02:51.7]} 8. Ne2 {[%clk 0:02:33.3]}
8... O-O {[%clk 0:02:50.2]} 9. c4 {[%clk 0:02:32.8]} 9... Qe7 {[%clk 0:02:27.5]}
10. Rc1 {[%clk 0:02:30.5]} 10... h6 {[%clk 0:02:26.8]} 11. Bf4 {[%clk
0:02:30.2]} 11... g5 {[%clk 0:02:26.8]} 12. Bxd6 {[%clk 0:02:25.7]} 12... Qxd6
{[%clk 0:02:27.7]} 13. cxd5 {[%clk 0:02:24.2]} 13... cxd5 {[%clk 0:02:08.6]} 14.
Qc2 {[%clk 0:02:24.3]} 14... Ne4 {[%clk 0:01:40.9]} 15. Qc7 {[%clk 0:02:16]}
15... Qxc7 {[%clk 0:01:36.7]} 16. Rxc7 {[%clk 0:02:15.1]} 16... Nd6 {[%clk
0:01:37.3]} 17. Rfc1 {[%clk 0:02:13.1]} 17... Rd8 {[%clk 0:01:37.5]} 18. Ne5
{[%clk 0:02:10.1]} 18... Kf8 {[%clk 0:01:30.8]} 19. f4 {[%clk 0:01:57.8]} 19...
g4 {[%clk 0:01:29.4]} 20. h3 {[%clk 0:01:56.7]} 20... Nxe5 {[%clk 0:01:12.6]}
21. fxe5 {[%clk 0:01:56.1]} 21... Ne8 {[%clk 0:01:13.5]} 22. Rh7 {[%clk
0:01:52.1]} 22... gxh3 {[%clk 0:00:54]} 23. gxh3 {[%clk 0:01:49.7]} 23... Bd7
{[%clk 0:00:54.9]} 24. Nf4 {[%clk 0:01:48.6]} 24... Rac8 {[%clk 0:00:50.5]} 25.
Rxc8 {[%clk 0:01:47.6]} 25... Bxc8 {[%clk 0:00:51.4]} 26. Be2 {[%clk 0:01:35]}
26... Ng7 {[%clk 0:00:26.4]} 27. Rxh6 {[%clk 0:01:28.3]} 27... Kf7 {[%clk
0:00:21.1]} 28. h4 {[%clk 0:01:22.7]} 28... Bd7 {[%clk 0:00:19.8]} 29. Rf6+
{[%clk 0:01:18.8]} 29... Kg8 {[%clk 0:00:18.4]} 30. h5 {[%clk 0:01:13.9]} 30...
Rf8 {[%clk 0:00:17.9]} 31. Rg6 {[%clk 0:01:13.3]} 31... Kh7 {[%clk 0:00:18.3]}
32. h6 {[%clk 0:01:13.1]} 32... Ne8 {[%clk 0:00:16.2]} 33. Kh2 {[%clk
0:01:12.1]} 33... Rg8 {[%clk 0:00:15.1]} 34. Bh5 {[%clk 0:01:08]} 34... Rxg6
{[%clk 0:00:08.5]} 35. Bxg6+ {[%clk 0:01:08.1]} 35... Kxh6 {[%clk 0:00:09.4]}
36. Bxe8 {[%clk 0:01:08.4]} 36... Bxe8 {[%clk 0:00:10.3]} 37. Nxe6 {[%clk
0:01:08.7]} 37... f4 {[%clk 0:00:08]} 38. Nxf4 {[%clk 0:01:04.8]} 38... Kg5
{[%clk 0:00:07.8]} 39. Kg3 {[%clk 0:01:04.1]} 39... Kf5 {[%clk 0:00:08.3]} 40.
Kf3 {[%clk 0:01:04.3]} 40... Bc6 {[%clk 0:00:01.9]} 41. e4+ {[%clk 0:01:01.8]}
41... dxe4+ {[%clk 0:00:01.7]} 42. Ke3 {[%clk 0:01:02.4]} 42... b6 {[%clk
0:00:02.2]} 43. Ne2 {[%clk 0:01:00.1]} 43... Bb7 {[%clk 0:00:02.3]} 44. Ng3+
{[%clk 0:01:00.1]} 44... Ke6 {[%clk 0:00:02.8]} 45. Nxe4 {[%clk 0:01:00.2]}
45... Kd5 {[%clk 0:00:03.7]} 46. b3 {[%clk 0:00:56.6]} 46... Bc6 {[%clk
0:00:03.2]} 47. Nc3+ {[%clk 0:00:56.7]} 47... Ke6 {[%clk 0:00:03.8]} 48. Kf4
{[%clk 0:00:54.7]} 1-0

[Event "Early-Titled-Tuesday-Blitz-February-27-2024"]
[Site "Chess.com"]
[Date "2024.02.27"]
[Round "7"]
[White "deepfear"]
[Black "Ishowmoves57"]
[Result "0-1"]
[WhiteElo "1977"]
[BlackElo "2164"]
[TimeControl "180+1"]
[EndTime "9:16:13 PST"]
[Termination "Ishowmoves57 won on time"]

1. e4 {[%clk 0:02:58.9]} 1... c5 {[%clk 0:02:58.9]} 2. Nc3 {[%clk 0:02:58]} 2...
b6 {[%clk 0:02:58]} 3. f4 {[%clk 0:02:46.1]} 3... Bb7 {[%clk 0:02:56.3]} 4. Nf3
{[%clk 0:02:44.4]} 4... Nf6 {[%clk 0:02:44.4]} 5. Bc4 {[%clk 0:02:04.4]} 5... d5
{[%clk 0:02:29.4]} 6. Bb5+ {[%clk 0:01:54.7]} 6... Bc6 {[%clk 0:02:20.2]} 7. e5
{[%clk 0:01:26.8]} 7... Ne4 {[%clk 0:02:17.7]} 8. Nxe4 {[%clk 0:01:18.4]} 8...
Bxb5 {[%clk 0:02:11.8]} 9. Nc3 {[%clk 0:01:14]} 9... Bc6 {[%clk 0:02:05]} 10. d3
{[%clk 0:01:03.5]} 10... e6 {[%clk 0:02:02.7]} 11. O-O {[%clk 0:01:02.8]} 11...
Be7 {[%clk 0:01:57.2]} 12. a4 {[%clk 0:00:58.1]} 12... a6 {[%clk 0:01:56.3]} 13.
Qe2 {[%clk 0:00:49]} 13... Nd7 {[%clk 0:01:50.5]} 14. Bd2 {[%clk 0:00:43.1]}
14... Nf8 {[%clk 0:01:49.1]} 15. h3 {[%clk 0:00:13.8]} 15... h5 {[%clk
0:01:46.2]} 16. Nh2 {[%clk 0:00:12.5]} 16... Ng6 {[%clk 0:01:39]} 17. f5 {[%clk
0:00:11]} 17... exf5 {[%clk 0:01:37.5]} 18. Rxf5 {[%clk 0:00:11.9]} 18... Qd7
{[%clk 0:01:19.7]} 19. Raf1 {[%clk 0:00:12]} 19... Rf8 {[%clk 0:01:00.4]} 20.
Qxh5 {[%clk 0:00:10.9]} 20... d4 {[%clk 0:00:57.3]} 21. Ne4 {[%clk 0:00:07.5]}
21... Bxe4 {[%clk 0:00:56.9]} 22. dxe4 {[%clk 0:00:08.4]} 22... Qe6 {[%clk
0:00:42.3]} 23. Qf3 {[%clk 0:00:05.3]} 23... Nh4 {[%clk 0:00:37.1]} 24. Qf2
{[%clk 0:00:02.8]} 24... Nxf5 {[%clk 0:00:36.4]} 25. exf5 {[%clk 0:00:03]} 25...
Qxe5 {[%clk 0:00:26.5]} 26. Ng4 {[%clk 0:00:01.5]} 26... Qc7 {[%clk 0:00:20.7]}
27. Re1 {[%clk 0:00:01.7]} 27... O-O-O {[%clk 0:00:19.8]} 28. Qf3 {[%clk
0:00:01.8]} 28... Kb8 {[%clk 0:00:16.5]} 0-1